fUSD/lending_fUSD_20260118
["ID","MTS","AMOUNT","RATE_DAILY","PERIOD"]
[402620180,1768726259282,-500.0,0.00017534,2]
[402620181,1768726259291,-235.7150467,0.00017534,2]
[402620182,1768726259300,-500.0,0.00017534,2]
[402620183,1768726259309,-500.0,0.00017534,2]
[402620184,1768726259319,-500.0,0.00017534,2]
[402620185,1768726259328,-500.0,0.00017534,2]
[402620186,1768726259337,-500.0,0.00017534,2]
[402620187,1768726259347,-500.0,0.00017534,2]
[402620188,1768726259356,-500.0,0.00017534,2]
[402620189,1768726259365,-500.0,0.00017534,2]
[402620190,1768726259373,-500.0,0.00017534,2]
[402620191,1768726259383,-500.0,0.00017534,2]
[402620192,1768726259391,-536.34,0.00017534,2]
[402620193,1768726259400,-4843.65,0.00017534,2]
[402620194,1768726259409,-279.534182,0.00017534,2]
[402620195,1768726259418,-500.0,0.00017534,2]
[402620196,1768726259427,-500.0,0.00017534,2]
[402620197,1768726259437,-500.0,0.00017534,2]
[402620198,1768726259447,-500.0,0.00017534,2]
[402620199,1768726259458,-586.42,0.00017534,2]
[402620200,1768726259473,-500.0,0.00017534,2]
[402620201,1768726259483,-500.0,0.00017534,2]
[402620202,1768726259493,-500.0,0.00017534,2]
[402620203,1768726259502,-500.0,0.00017534,2]
[402620204,1768726259511,-500.0,0.00017534,2]
[402620205,1768726259521,-579.08981172,0.00017534,2]
[402620206,1768726259531,-500.0,0.00017534,2]
[402620207,1768726259540,-500.0,0.00017534,2]
[402620208,1768726259549,-500.0,0.00017534,2]
[402620209,1768726259559,-603.10789331,0.00017534,2]
[402620210,1768726259568,-500.0,0.00017534,2]
[402620211,1768726259577,-500.0,0.00017534,2]
[402620212,1768726259587,-500.0,0.00017534,2]
[402620213,1768726259596,-500.0,0.00017534,2]
[402620214,1768726259605,-500.0,0.00017534,2]
[402620215,1768726259614,-500.0,0.00017534,2]
[402620216,1768726259623,-500.0,0.00017534,2]
[402620217,1768726259633,-500.0,0.00017534,2]
[402620218,1768726259642,-500.0,0.00017534,2]
[402620219,1768726259651,-500.0,0.00017534,2]
[402620220,1768726259662,-500.0,0.00017534,2]
[402620221,1768726259672,-199.7621583,0.00017534,2]
[402620222,1768726259682,-500.0,0.00017534,2]
[402620223,1768726259693,-500.0,0.00017534,2]
[402620224,1768726259703,-500.0,0.00017534,2]
[402620225,1768726259713,-500.0,0.00017534,2]
[402620226,1768726259723,-500.0,0.00017534,2]
[402620227,1768726259732,-500.0,0.00017534,2]
[402620228,1768726259742,-500.0,0.00017534,2]
[402620229,1768726259751,-500.0,0.00017534,2]
[402620230,1768726259760,-500.0,0.00017534,2]
[402620231,1768726259770,-222.05323251,0.00017534,2]
[402620232,1768726259779,-500.0,0.00017534,2]
[402620233,1768726259788,-500.0,0.00017534,2]
[402620234,1768726259797,-500.0,0.00017534,2]
[402620235,1768726259806,-500.0,0.00017534,2]
[402620236,1768726259815,-500.0,0.00017534,2]
[402620237,1768726259825,-500.0,0.00017534,2]
[402620238,1768726259834,-500.0,0.00017534,2]
[402620239,1768726259843,-500.0,0.00017534,2]
[402620240,1768726259857,-500.0,0.00017534,2]
[402620241,1768726259866,-500.0,0.00017534,2]
[402620242,1768726259875,-500.0,0.00017534,2]
[402620243,1768726259886,-500.0,0.00017534,2]
[402620244,1768726259898,-500.0,0.00017534,2]
[402620245,1768726259909,-500.0,0.00017534,2]
[402620246,1768726259920,-571.6,0.00017534,2]
[402620247,1768726259929,-500.0,0.00017534,2]
[402620248,1768726259940,-469.25889048,0.00017534,2]
[402620249,1768726259951,-500.0,0.00017534,2]
[402620250,1768726259963,-500.0,0.00017534,2]
[402620251,1768726259977,-500.0,0.00017534,2]
[402620252,1768726259994,-500.0,0.00017534,2]
[402620253,1768726260004,-500.0,0.00017534,2]
[402620254,1768726260015,-500.0,0.00017534,2]
[402620255,1768726260026,-551.69,0.00017534,2]
[402620256,1768726260038,-500.0,0.00017534,2]
[402620257,1768726260050,-500.0,0.00017534,2]
[402620258,1768726260061,-500.0,0.00017534,2]
[402620259,1768726260072,-3647.89,0.00017534,2]
[402620260,1768726260082,-500.0,0.00017534,2]
[402620261,1768726260092,-500.0,0.00017534,2]
[402620262,1768726260102,-500.0,0.00017534,2]
[402620263,1768726260112,-500.0,0.00017534,2]
[402620264,1768726260123,-500.0,0.00017534,2]
[402620265,1768726260135,-637.52,0.00017534,2]
[402620266,1768726260145,-546.70437087,0.00017534,2]
[402620267,1768726260156,-500.0,0.00017534,2]
[402620268,1768726260166,-500.0,0.00017534,2]
[402620269,1768726260177,-500.0,0.00017534,2]
[402620270,1768726260187,-500.0,0.00017534,2]
[402620271,1768726260198,-500.0,0.00017534,2]
[402620272,1768726260208,-500.0,0.00017534,2]
[402620273,1768726260218,-587.79,0.00017534,2]
[402620274,1768726260228,-500.0,0.00017534,2]
[402620275,1768726260239,-500.0,0.00017534,2]
[402620276,1768726260250,-500.0,0.00017534,2]
[402620277,1768726260260,-500.0,0.00017534,2]
[402620278,1768726260270,-500.0,0.00017534,2]
[402620279,1768726260280,-576.89,0.00017534,2]
[402620280,1768726260291,-500.0,0.00017534,2]
[402620281,1768726260300,-200.0,0.00017534,2]
[402620282,1768726260310,-500.0,0.00017534,2]
[402620283,1768726260320,-504.95,0.00017534,2]
[402620284,1768726260331,-1546.9,0.00017534,2]
[402620285,1768726260340,-500.0,0.00017534,2]
[402620286,1768726260350,-500.0,0.00017534,2]
[402620287,1768726260359,-500.0,0.00017534,2]
[402620288,1768726260369,-500.0,0.00017534,2]
[402620289,1768726260378,-500.0,0.00017534,2]
[402620290,1768726260388,-500.0,0.00017534,2]
[402620291,1768726260398,-500.0,0.00017534,2]
[402620292,1768726260407,-612.81472691,0.00017534,2]
[402620293,1768726260421,-500.0,0.00017534,2]
[402620294,1768726260431,-151.0,0.00017534,2]
[402620295,1768726260440,-500.0,0.00017534,2]
[402620296,1768726260450,-500.0,0.00017534,2]
[402620297,1768726260462,-549.06,0.00017534,2]
[402620298,1768726260473,-500.0,0.00017534,2]
[402620299,1768726260483,-500.0,0.00017534,2]
[402620300,1768726260492,-500.0,0.00017534,2]
[402620301,1768726260502,-600.0,0.00017534,2]
[402620302,1768726260514,-600.0,0.00017534,2]
[402620303,1768726260524,-1000.0,0.00017534,2]
[402620304,1768726260534,-4001.0,0.00017549,2]
[402620305,1768726260543,-334.5472959,0.00017549,2]
[402620306,1768726260553,-150.0,0.0001755,2]
[402620307,1768726260563,-1497.84500584,0.00017555,2]
[402620308,1768726260574,-1440.38824472,0.00017568,2]
[402620309,1768726260584,-898.80157031,0.00017568,2]
[402620310,1768726260594,-1500.0,0.00017568,2]
[402620311,1768726260603,-1500.0,0.00017568,2]
[402620312,1768726260613,-1373.13604917,0.00017568,2]
[402620313,1768726260623,-1500.0,0.00017568,2]
[402620314,1768726260633,-863.75080239,0.00017568,2]
[402620315,1768726260643,-1500.0,0.00017568,2]
[402620316,1768726260653,-1500.0,0.00017568,2]
[402620317,1768726260664,-1500.0,0.00017568,2]
[402620318,1768726260674,-1500.0,0.00017568,2]
[402620319,1768726260684,-1630.30097829,0.00017568,2]
[402620320,1768726260694,-504.10053469,0.00017568,2]
[402620321,1768726260704,-1500.0,0.00017568,2]
[402620322,1768726260715,-1622.45048123,0.00017568,2]
[402620323,1768726260724,-1500.0,0.00017568,2]
[402620324,1768726260734,-1500.0,0.00017568,2]
[402620325,1768726260747,-1074.55972892,0.00017568,2]
[402620326,1768726260756,-782.54716323,0.00017568,2]
[402620327,1768726260767,-1500.0,0.00017568,2]
[402620328,1768726260777,-1500.0,0.00017568,2]
[402620329,1768726260786,-1500.0,0.00017568,2]
[402620330,1768726260801,-1500.0,0.00017568,2]
[402620331,1768726260811,-1500.0,0.00017568,2]
[402620332,1768726260820,-1500.0,0.00017568,2]
[402620333,1768726260830,-1500.0,0.00017568,2]
[402620334,1768726260840,-1500.0,0.00017568,2]
[402620335,1768726260850,-1500.0,0.00017568,2]
[402620336,1768726260860,-1500.0,0.00017568,2]
[402620337,1768726260870,-1500.0,0.00017568,2]
[402620338,1768726260880,-1979.0,0.0001757,2]
[402620339,1768726260890,-284.5,0.00017594,2]
[402620340,1768726260900,-500.0,0.000176,2]
[402620341,1768726260910,-5461.02027762,0.0001763,2]
[402620342,1768726260920,-3945.32389994,0.00017633,2]
[402620343,1768726260930,-2355.0,0.00017661,2]
[402620344,1768726260941,-835.0,0.0001768,2]
[402620345,1768726260951,-2355.0,0.00017703,2]
[402620346,1768726260961,-376.35,0.00017709,2]
[402620347,1768726260971,-200.0,0.00017709,2]
[402620348,1768726260981,-200.0,0.00017709,2]
[402620349,1768726260991,-5888.0,0.00017723,2]
[402620350,1768726261001,-284.5,0.00017729,2]
[402620351,1768726261013,-1000.0,0.00017751,2]
[402620352,1768726261023,-341.0,0.00017761,2]
[402620353,1768726261034,-150.0,0.00017775,2]
[402620354,1768726261044,-1979.0,0.0001778,2]
[402620355,1768726261055,-188.0,0.000178,3]
[402620356,1768726261065,-9989.70063807,0.000178,2]
[402620357,1768726261074,-500.0,0.000178,2]
[402620358,1768726261084,-500.0,0.000178,2]
[402620359,1768726261095,-1979.0,0.00017804,2]
[402620360,1768726261105,-25000.0,0.00017808,3]
[402620361,1768726261115,-500.0,0.00017808,2]
[402620362,1768726261126,-500.0,0.00017808,2]
[402620363,1768726261136,-500.0,0.00017808,2]
[402620364,1768726261147,-500.0,0.00017808,2]
[402620365,1768726261157,-500.0,0.00017808,2]
[402620366,1768726261167,-500.0,0.00017808,2]
[402620367,1768726261179,-509.44,0.00017808,2]
[402620368,1768726261189,-500.0,0.00017808,2]
[402620369,1768726261199,-500.0,0.00017808,2]
[402620370,1768726261210,-500.0,0.00017808,2]
[402620371,1768726261221,-500.0,0.00017808,2]
[402620372,1768726261231,-500.0,0.00017808,2]
[402620373,1768726261242,-518.1,0.00017808,2]
[402620374,1768726261252,-500.0,0.00017808,2]
[402620375,1768726261261,-589.65,0.00017808,2]
[402620376,1768726261271,-500.0,0.00017808,2]
[402620377,1768726261282,-701.66,0.00017808,2]
[402620378,1768726261292,-1586.38,0.00017808,2]
[402620379,1768726261302,-592.15,0.00017808,2]
[402620380,1768726261313,-500.0,0.00017808,2]
[402620381,1768726261323,-500.0,0.00017808,2]
[402620382,1768726261333,-500.0,0.00017808,2]
[402620383,1768726261343,-500.0,0.00017808,2]
[402620384,1768726261353,-266.96486145,0.00017808,2]
[402620385,1768726261363,-500.0,0.00017808,2]
[402620386,1768726261373,-419.00957537,0.00017808,2]
[402620387,1768726261383,-500.0,0.00017808,2]
[402620388,1768726261393,-500.0,0.00017808,2]
[402620389,1768726261402,-500.0,0.00017808,2]
[402620390,1768726261412,-296.00530668,0.00017808,2]
[402620391,1768726261422,-500.0,0.00017808,2]
[402620392,1768726261431,-500.0,0.00017808,2]
[402620393,1768726261441,-500.0,0.00017808,2]
[402620394,1768726261452,-500.0,0.00017808,2]
[402620395,1768726261462,-500.0,0.00017808,2]
[402620396,1768726261472,-500.0,0.00017808,2]
[402620397,1768726261482,-500.0,0.00017808,2]
[402620398,1768726261492,-500.0,0.00017808,2]
[402620399,1768726261502,-500.0,0.00017808,2]
[402620400,1768726261512,-604.43211204,0.00017808,2]
[402620401,1768726261521,-500.0,0.00017808,2]
[402620402,1768726261531,-310.2594973,0.00017808,2]
[402620403,1768726261540,-500.0,0.00017808,2]
[402620404,1768726261550,-500.0,0.00017808,2]
[402620405,1768726261559,-348.83709258,0.00017808,2]
[402620406,1768726261568,-500.0,0.00017808,2]
[402620407,1768726261578,-500.0,0.00017808,2]
[402620408,1768726261587,-560.03,0.00017808,2]
[402620409,1768726261596,-500.0,0.00017808,2]
[402620410,1768726261607,-500.0,0.00017808,2]
[402620411,1768726261616,-500.0,0.00017808,2]
[402620412,1768726261626,-500.0,0.00017808,2]
[402620413,1768726261637,-500.0,0.00017808,2]
[402620414,1768726261647,-500.0,0.00017808,2]
[402620415,1768726261657,-500.0,0.00017808,2]
[402620416,1768726261667,-500.0,0.00017808,2]
[402620417,1768726261676,-500.0,0.00017808,2]
[402620418,1768726261686,-500.0,0.00017808,2]
[402620419,1768726261696,-531.53,0.00017808,2]
[402620420,1768726261705,-546.59739914,0.00017808,2]
[402620421,1768726261715,-500.0,0.00017808,2]
[402620422,1768726261724,-500.0,0.00017808,2]
[402620423,1768726261734,-500.0,0.00017808,2]
[402620424,1768726261743,-500.0,0.00017808,2]
[402620425,1768726261752,-500.0,0.00017808,2]
[402620426,1768726261762,-500.0,0.00017808,2]
[402620427,1768726261771,-500.0,0.00017808,2]
[402620428,1768726261781,-500.0,0.00017808,2]
[402620429,1768726261791,-500.0,0.00017808,2]
[402620430,1768726261801,-500.0,0.00017808,2]
[402620431,1768726261810,-500.0,0.00017808,2]
[402620432,1768726261820,-500.0,0.00017808,2]
[402620433,1768726261830,-500.0,0.00017808,2]
[402620434,1768726261839,-722.21,0.00017808,2]
[402620435,1768726261850,-519.35,0.00017808,2]
[402620436,1768726261859,-500.0,0.00017808,2]
[402620437,1768726261868,-500.0,0.00017808,2]
[402620438,1768726261878,-500.0,0.00017808,2]
[402620439,1768726261887,-288.71398556,0.00017808,2]
[402620440,1768726261897,-845.48,0.00017808,2]
[402620441,1768726261907,-500.0,0.00017808,2]
[402620442,1768726261916,-1007.72577203,0.00017808,2]
[402620443,1768726261936,-500.0,0.00017808,2]
[402620444,1768726261947,-500.0,0.00017808,2]
[402620445,1768726261958,-500.0,0.00017808,2]
[402620446,1768726261970,-687.44,0.00017808,2]
[402620447,1768726261983,-500.0,0.00017808,2]
[402620448,1768726261994,-500.0,0.00017808,2]
[402620449,1768726262006,-500.0,0.00017808,2]
[402620450,1768726262018,-500.0,0.00017808,2]
[402620451,1768726262028,-500.0,0.00017808,2]
[402620452,1768726262040,-500.0,0.00017808,2]
[402620453,1768726262051,-500.0,0.00017808,2]
[402620454,1768726262063,-500.0,0.00017808,2]
[402620455,1768726262074,-500.0,0.00017808,2]
[402620456,1768726262084,-500.0,0.00017808,2]
[402620457,1768726262095,-500.0,0.00017808,2]
[402620458,1768726262106,-5874.87989736,0.00017808,3]
[402620459,1768726262117,-500.0,0.00017808,2]
[402620460,1768726262128,-500.0,0.00017808,2]
[402620461,1768726262138,-197.43855124,0.00017808,2]
[402620462,1768726262149,-185.85843722,0.00017808,2]
[402620463,1768726262160,-500.0,0.00017808,2]
[402620464,1768726262172,-500.0,0.00017808,2]
[402620465,1768726262519,-500.0,0.00017808,2]
[402620466,1768726262539,-810.84,0.00017808,2]
[402620467,1768726262549,-500.0,0.00017808,2]
[402620468,1768726262559,-500.0,0.00017808,2]
[402620469,1768726262568,-500.0,0.00017808,2]
[402620470,1768726262578,-500.0,0.00017808,2]
[402620471,1768726262587,-500.0,0.00017808,2]
[402620472,1768726262596,-500.0,0.00017808,2]
[402620473,1768726262606,-207.19150813,0.00017808,2]
[402620474,1768726262615,-500.0,0.00017808,2]
[402620475,1768726262625,-500.0,0.00017808,2]
[402620476,1768726262635,-500.0,0.00017808,2]
[402620477,1768726262646,-500.0,0.00017808,2]
[402620478,1768726262655,-494.52780898,0.00017808,2]
[402620479,1768726262666,-500.0,0.00017808,2]
[402620480,1768726262676,-500.0,0.00017808,2]
[402620481,1768726262685,-500.0,0.00017808,2]
[402620482,1768726262694,-597.47257685,0.00017808,2]
[402620483,1768726262704,-500.0,0.00017808,2]
[402620484,1768726262714,-500.0,0.00017808,2]
[402620485,1768726262723,-536.34,0.00017808,2]
[402620486,1768726262732,-4843.65,0.00017808,2]
[402620487,1768726262745,-500.0,0.00017808,2]
[402620488,1768726262755,-500.0,0.00017808,2]
[402620489,1768726262764,-500.0,0.00017808,2]
[402620490,1768726262774,-293.67590282,0.00017808,2]
[402620491,1768726262784,-586.42,0.00017808,2]
[402620492,1768726262794,-500.0,0.00017808,2]
[402620493,1768726262804,-500.0,0.00017808,2]
[402620494,1768726262813,-500.0,0.00017808,2]
[402620495,1768726262823,-500.0,0.00017808,2]
[402620496,1768726262832,-500.0,0.00017808,2]
[402620497,1768726262842,-500.0,0.00017808,2]
[402620498,1768726262851,-500.0,0.00017808,2]
[402620499,1768726262861,-500.0,0.00017808,2]
[402620500,1768726262871,-500.0,0.00017808,2]
[402620501,1768726262880,-500.0,0.00017808,2]
[402620502,1768726262890,-500.0,0.00017808,2]
[402620503,1768726262899,-643.70332727,0.00017808,2]
[402620504,1768726262909,-500.0,0.00017808,2]
[402620505,1768726262919,-500.0,0.00017808,2]
[402620506,1768726262929,-500.0,0.00017808,2]
[402620507,1768726262939,-500.0,0.00017808,2]
[402620508,1768726262949,-500.0,0.00017808,2]
[402620509,1768726262959,-500.0,0.00017808,2]
[402620510,1768726262969,-500.0,0.00017808,2]
[402620511,1768726262979,-500.0,0.00017808,2]
[402620512,1768726262991,-500.0,0.00017808,2]
[402620513,1768726263002,-500.0,0.00017808,2]
[402620514,1768726263011,-500.0,0.00017808,2]
[402620515,1768726263021,-500.0,0.00017808,2]
[402620516,1768726263031,-500.0,0.00017808,2]
[402620517,1768726263042,-500.0,0.00017808,2]
[402620518,1768726263052,-500.0,0.00017808,2]
[402620519,1768726263062,-500.0,0.00017808,2]
[402620520,1768726263073,-500.0,0.00017808,2]
[402620521,1768726263084,-500.0,0.00017808,2]
[402620522,1768726263094,-500.0,0.00017808,2]
[402620523,1768726263104,-500.0,0.00017808,2]
[402620524,1768726263114,-500.0,0.00017808,2]
[402620525,1768726263124,-500.0,0.00017808,2]
[402620526,1768726263134,-500.0,0.00017808,2]
[402620527,1768726263145,-500.0,0.00017808,2]
[402620528,1768726263155,-500.0,0.00017808,2]
[402620529,1768726263165,-500.0,0.00017808,2]
[402620530,1768726263175,-500.0,0.00017808,2]
[402620531,1768726263186,-500.0,0.00017808,2]
[402620532,1768726263196,-500.0,0.00017808,2]
[402620533,1768726263207,-500.0,0.00017808,2]
[402620534,1768726263217,-571.6,0.00017808,2]
[402620535,1768726263227,-500.0,0.00017808,2]
[402620536,1768726263237,-500.0,0.00017808,2]
[402620537,1768726263247,-500.0,0.00017808,2]
[402620538,1768726263258,-500.0,0.00017808,2]
[402620539,1768726263268,-500.0,0.00017808,2]
[402620540,1768726263279,-500.0,0.00017808,2]
[402620541,1768726263289,-500.0,0.00017808,2]
[402620542,1768726263299,-551.69,0.00017808,2]
[402620543,1768726263308,-500.0,0.00017808,2]
[402620544,1768726263319,-500.0,0.00017808,2]
[402620545,1768726263330,-500.0,0.00017808,2]
[402620546,1768726263340,-3647.89,0.00017808,2]
[402620547,1768726263349,-500.0,0.00017808,2]
[402620548,1768726263359,-500.0,0.00017808,2]
[402620549,1768726263369,-500.0,0.00017808,2]
[402620550,1768726263379,-500.0,0.00017808,2]
[402620551,1768726263389,-500.0,0.00017808,2]
[402620552,1768726263401,-637.52,0.00017808,2]
[402620553,1768726263411,-500.0,0.00017808,2]
[402620554,1768726263421,-500.0,0.00017808,2]
[402620555,1768726263431,-500.0,0.00017808,2]
[402620556,1768726263442,-500.0,0.00017808,2]
[402620557,1768726263451,-500.0,0.00017808,2]
[402620558,1768726263461,-500.0,0.00017808,2]
[402620559,1768726263471,-587.79,0.00017808,2]
[402620560,1768726263481,-500.0,0.00017808,2]
[402620561,1768726263491,-500.0,0.00017808,2]
[402620562,1768726263501,-494.29987061,0.00017808,2]
[402620563,1768726263511,-500.0,0.00017808,2]
[402620564,1768726263520,-500.0,0.00017808,2]
[402620565,1768726263531,-164.1242988,0.00017808,2]
[402620566,1768726263541,-576.89,0.00017808,2]
[402620567,1768726263551,-500.0,0.00017808,2]
[402620568,1768726263561,-504.95,0.00017808,2]
[402620569,1768726263571,-1546.9,0.00017808,2]
[402620570,1768726263582,-500.0,0.00017808,2]
[402620571,1768726263592,-500.0,0.00017808,2]
[402620572,1768726263600,-500.0,0.00017808,2]
[402620573,1768726263609,-500.0,0.00017808,2]
[402620574,1768726263619,-500.0,0.00017808,2]
[402620575,1768726263628,-500.0,0.00017808,2]
[402620576,1768726263639,-500.0,0.00017808,2]
[402620577,1768726263649,-500.0,0.00017808,2]
[402620578,1768726263658,-500.0,0.00017808,2]
[402620579,1768726263668,-500.0,0.00017808,2]
[402620580,1768726263678,-549.06,0.00017808,2]
[402620581,1768726263687,-500.0,0.00017808,2]
[402620582,1768726263697,-500.0,0.00017808,2]
[402620583,1768726263706,-500.0,0.00017808,2]
[402620584,1768726263715,-600.0,0.00017808,2]
[402620585,1768726263725,-600.0,0.00017808,2]
[402620586,1768726263735,-250.0,0.00017808,2]
[402620587,1768726263745,-1000.0,0.00017808,2]
[402620588,1768726263754,-163.1649928,0.00017808,2]
[402620589,1768726263764,-761.65,0.0001781,2]
[402620590,1768726263774,-166.66,0.00017816,2]
[402620591,1768726263784,-640.24385345,0.00017824,2]
[402620592,1768726263794,-212.71,0.00017835,14]
[402620593,1768726263803,-866.0,0.00017838,2]
[402620594,1768726263813,-166.89,0.0001785,2]
[402620595,1768726263823,-5800.0,0.00017858,2]
[402620596,1768726263832,-1979.0,0.0001786,2]
[402620597,1768726263843,-500.0,0.00017863,2]
[402620598,1768726263853,-500.0,0.00017863,2]
[402620599,1768726263862,-2500.0,0.00017864,2]
[402620600,1768726263871,-284.5,0.00017865,2]
[402620601,1768726263881,-5800.0,0.00017866,2]
[402620602,1768726263890,-152.0,0.00017873,3]
[402620603,1768726263900,-5800.0,0.00017874,2]
[402620604,1768726263909,-2523.4803257,0.0001788,2]
[402620605,1768726263919,-5800.0,0.00017883,2]
[402620606,1768726263928,-200.0,0.00017886,2]
[402620607,1768726263938,-200.0,0.00017886,2]
[402620608,1768726263948,-1979.0,0.00017887,2]
[402620609,1768726263958,-5800.0,0.00017891,2]
[402620610,1768726263968,-5800.0,0.000179,2]
[402620611,1768726263977,-500.0,0.000179,2]
[402620612,1768726263988,-5461.02027762,0.000179,2]
[402620613,1768726263999,-3945.32389994,0.000179,2]
[402620614,1768726264009,-154.79146609,0.000179,2]
[402620615,1768726264020,-159.81012096,0.000179,2]
[402620616,1768726264031,-159.81012084,0.000179,2]
[402620617,1768726264042,-1249.39886294,0.000179,2]
[402620618,1768726264051,-159.81012084,0.000179,2]
[402620619,1768726264061,-1344.39837342,0.000179,2]
[402620620,1768726264071,-829.5534708,0.000179,2]
[402620621,1768726264080,-159.81012084,0.000179,2]
[402620622,1768726264090,-159.81012084,0.000179,2]
[402620623,1768726264100,-159.81012084,0.000179,2]
[402620624,1768726264109,-159.81012084,0.000179,2]
[402620625,1768726264119,-159.81012084,0.000179,2]
[402620626,1768726264128,-1046.77874033,0.000179,2]
[402620627,1768726264137,-159.81012084,0.000179,2]
[402620628,1768726264147,-159.81012084,0.000179,2]
[402620629,1768726264156,-159.81012084,0.000179,2]
[402620630,1768726264166,-159.81012084,0.000179,2]
[402620631,1768726264175,-500.0,0.000179,2]
[402620632,1768726264184,-500.0,0.000179,2]
[402620633,1768726264194,-500.0,0.000179,2]
[402620634,1768726264202,-500.0,0.000179,2]
[402620635,1768726264211,-500.0,0.000179,2]
[402620636,1768726264220,-500.0,0.000179,2]
[402620637,1768726264229,-500.0,0.00017918,2]
[402620638,1768726264238,-500.0,0.00017918,2]
[402620639,1768726264247,-1979.0,0.00017931,2]
[402620640,1768726264256,-2271.0,0.0001795,2]
[402620641,1768726264266,-2271.0,0.00017968,2]
[402620642,1768726264275,-400.0,0.0001797,2]
[402620643,1768726264285,-661.50728786,0.0001797,2]
[402620644,1768726264294,-224.71091954,0.00017972,2]
[402620645,1768726264304,-500.0,0.00017972,2]
[402620646,1768726264313,-500.0,0.00017973,2]
[402620647,1768726264323,-150.0,0.00017973,2]
[402620648,1768726264332,-172.84,0.00017978,2]
[402620649,1768726264342,-2355.0,0.00017988,2]
[402620650,1768726264351,-187.10203341,0.0001799,2]
[402620651,1768726264361,-261.35951101,0.00017999,2]
[402620652,1768726264371,-1000.0,0.00017999,2]
[402620653,1768726264380,-1000.0,0.00017999,2]
[402620654,1768726264390,-1000.0,0.00017999,2]
[402620655,1768726264399,-1000.0,0.00017999,2]
[402620656,1768726264408,-1000.0,0.00017999,2]
[402620657,1768726264418,-1000.0,0.00017999,2]
[402620658,1768726264427,-1000.0,0.00017999,2]
[402620659,1768726264437,-1000.0,0.00017999,2]
[402620660,1768726264446,-1000.0,0.00017999,2]
[402620661,1768726264455,-1000.0,0.00017999,2]
[402620662,1768726264465,-1007.37691914,0.00017999,2]
[402620663,1768726264474,-150.0,0.00018,2]
[402620664,1768726264485,-150.0,0.00018,2]
[402620665,1768726264496,-150.0,0.00018,2]
[402620666,1768726264505,-265.5663701,0.00018,2]
[402620667,1768726264518,-236.45405301,0.00018,2]
[402620668,1768726264527,-150.0,0.00018,2]
[402620669,1768726264538,-150.0,0.00018,2]
[402620670,1768726264547,-150.0,0.00018,2]
[402620671,1768726264556,-150.0,0.00018,2]
[402620672,1768726264566,-150.0,0.00018,2]
[402620673,1768726264575,-396525.77112167,0.00018,2]
[402620674,1768726264979,-2734.66853427,0.00018,2]
[402620675,1768726264997,-523.34287504,0.00018,2]
[402620676,1768726266684,-8247.56000299,0.00016372,2]
[402620677,1768726266697,-2377.375,0.00016372,2]
[402620678,1768726266711,-6536.95196536,0.00016372,2]
[402620679,1768726266725,-1389.62547407,0.00016372,2]